Cogmind - Beta 13 @@@ ROGUE MODE // 2024.03.29 @ 09:18:46 Player: H3-RMN Result: Destroyed by S-10 Pest with Light Assault Rifle Performance ------------- Evolutions (0) 0 Regions Visited (2) 400 Robots Destroyed (11) 55 Value Destroyed (215) 215 Prototype IDs (0) 0 Alien Tech Used (0) 0 Bonus (0) 0 TOTAL SCORE: 670 Bonus ------- None Cogmind --------- Core Integrity 0/250 Matter 275/300 Energy 200/200 System Corruption 1% Temperature Cool (0) Movement Rolling (110) Location -10/Subcaves Parts ------- > --- POWER (1) -------- Subdweller Power Source > --- PROPULSION (2) --- Subdweller Monowheel > --- UTILITY (2) ------ Small Storage Unit Subdweller Optics > --- WEAPON (2) ------- Beam Cannon Assault Rifle > --- INVENTORY (8) ---- Light Ion Engine Light Treads Makeshift Flight Unit Targeting Computer Tractor Beam Riot Gun Light Assault Rifle Peak State ------------ > --- POWER ------------ Light Ion Engine > --- PROPULSION ------- Light Treads Wheel > --- UTILITY ---------- Small Storage Unit Seismic Detector > --- WEAPON ----------- Assault Rifle Barrage Gun > --- INVENTORY -------- Light Ion Engine Light Treads Makeshift Flight Unit Targeting Computer Tractor Beam Riot Gun Beam Cannon Light Assault Rifle [Rating: 10] Favorites ----------- Power Light Ion Engine Engine Light Ion Engine Propulsion Light Treads Treads Light Treads Wheel Wheel Utility Small Storage Unit Device Seismic Detector Storage Small Storage Unit Weapon Assault Rifle Energy Cannon Beam Cannon Ballistic Gun Assault Rifle Build | -11 -10 -10 ------- Run | Yrd Mat Sub Slots Evolved . | . . . Power . | . . . Propulsion . | . . . Utility . | . . . Weapon . | . . . Parts Attached 18 | 8 4 6 Power 3 | 1 . 2 Engine 3 | 1 . 2 Core . | . . . Reactor . | . . . Propulsion 5 | 2 2 1 Treads 2 | 1 1 . Leg . | . . . Wheel 3 | 1 1 1 Hover . | . . . Flight . | . . . Utility 4 | 3 . 1 Device 3 | 2 . 1 Storage 1 | 1 . . Processor . | . . . Hackware . | . . . Protection . | . . . Artifact . | . . . Weapon 6 | 2 2 2 Energy Gun . | . . . Energy Cannon 1 | . . 1 Ballistic Gun 5 | 2 2 1 Ballistic Cannon . | . . . Launcher . | . . . Special Weapon . | . . . Impact Weapon . | . . . Slashing Weapon . | . . . Piercing Weapon . | . . . Special Melee Weapon . | . . . Unidentified Prototypes . | . . . Parts Lost 5 | . . 5 Power 1 | . . 1 Propulsion 2 | . . 2 Utility 1 | . . 1 Weapon 1 | . . 1 Highest Loss Streak 4 | . . 4 To Critical Strikes . | . . . Average Slot Usage (%) 97 | . 98 96 Engine 13 | . 14 13 Treads 12 | . 13 12 Wheel 13 | . 13 13 Device 13 | . 14 13 Storage 14 | . 14 14 Ballistic Gun 27 | . 27 26 Naked Turns . | . . . Heaviest Build 17 | 13 13 17 Greatest Support 20 | 20 10 20 Greatest Overweight (x) 4 | 1 4 4 Average Overweight (x) . | . 1 . Largest Inventory Capacity 8 | 8 8 8 Average Capacity 7 | 7 8 8 Most Carried 8 | 7 8 8 Average Carried 7 | 3 7 7 Final Capacity 8 | 8 8 8 Final Carried 8 | 7 8 7 Class Distribution -------------------- 100% | Mutant Dominant Class ---------------- Mutant | -10/Materials Mutant | -10/Subcaves Resources | -11 -10 -10 ----------- Run | Yrd Mat Sub Matter Collected 609 | 307 73 229 Remotely 127 | 127 . . Salvage Created 392 | 72 81 239 Parts 25 | 6 8 11 Haulers Intercepted 1 | . 1 . Recyclers Shooed . | . . . Parts Field Recycled . | . . . Retrieved Matter . | . . . Parts Self-Destructed 15 | . . 15 Prevented . | . . . Kills | -11 -10 -10 ------- Run | Yrd Mat Sub Combat Hostiles Destroyed 8 | . 3 5 Guns 7 | . 3 4 Cannons 1 | . . 1 Classes Destroyed 6 | 2 2 2 Tunneler 1 | 1 . . Hauler 1 | . 1 . Recycler 1 | 1 . . Swarmer 4 | . 3 1 Cobbler 1 | . . 1 Subdweller 4 | . . 4 Best Kill Streak 4 | 2 4 2 Combat Bots Only 3 | . 3 2 Max Kills in Single Turn 2 | 1 2 1 Gunslinging 1 | . 1 . Exploded . | . . . Melee . | . . . Uniques/NPCs Destroyed . | . . . Combat | -11 -10 -10 -------- Run | Yrd Mat Sub Hostile Shots Fired 54 | . 6 48 Missed 16 | . 4 12 Damage Taken 716 | . 12 704 Core 256 | . . 256 Absorbed by Shields . | . . . Core Remaining (%) 100 | 100 . . Volleys Fired 43 | 5 5 33 Largest 2 | 2 2 2 Hottest 80 | 40 40 80 Shots Fired 84 | 10 10 64 Gun 75 | 10 10 55 Cannon 9 | . . 9 Launcher . | . . . Special . | . . . Kinetic 75 | 10 10 55 Thermal 9 | . . 9 Explosive . | . . . Electromagnetic . | . . . Robot Hit Streak 21 | 3 4 21 Robot Miss Streak 2 | 1 1 2 Penetration Max . | . . . Secondary Targets 1 | . 1 . Max Gunslinging Chain 1 | . 1 . Shots Hit Robots 64 | 6 6 52 Core Hits 20 | 3 5 12 Critical Kills . | . . . Critical Parts Destroyed . | . . . Critical Strikes . | . . . Melee Attacks . | . . . Impact . | . . . Slashing . | . . . Piercing . | . . . Sneak Attacks . | . . . Combat Hostiles . | . . . Follow-up Attacks . | . . . Damage Inflicted 883 | 78 80 725 Guns 744 | 78 80 586 Cannons 139 | . . 139 Explosions . | . . . Melee . | . . . Ramming . | . . . Kinetic 744 | 78 80 586 Thermal 139 | . . 139 Explosive . | . . . Electromagnetic . | . . . Impact . | . . . Slashing . | . . . Piercing . | . . . Highest Corruption 1 | . 1 1 Average Corruption 1 | . 1 1 Corruption Purged . | . . . Corruption Blocked . | . . . Effects 23 | . 4 19 Message Errors 6 | . . 6 Matter Fused 4 | . 1 3 Heat Flow Errors 4 | . 1 3 Energy Discharges 4 | . . 4 Data Loss (minor) 3 | . 2 1 Data Loss (major) 1 | . . 1 Alerts 1 | . . 1 Overload Shots . | . . . Overflow Damage . | . . . Projectiles . | . . . Explosions . | . . . Melee . | . . . Knockbacks . | . . . Impact . | . . . Kinetic . | . . . Secondary . | . . . Self-Inflicted Damage . | . . . Shots . | . . . Rammed . | . . . Targets Rammed . | . . . Kicked . | . . . Crushed . | . . . Highest Temperature 283 | . 87 283 Average Temperature 107 | . 51 117 Received Heat Transfer 413 | . . 413 Siege Activations . | . . . Robots Corrupted . | . . . Combat Hostiles . | . . . Parts Fried . | . . . Impact Corruptions . | . . . Robots Melted . | . . . Combat Hostiles . | . . . Parts Melted 1 | . . 1 Heat Transferred 296 | . . 296 Parts Sabotaged . | . . . Parts Stolen . | . . . Parts Stripped . | . . . Power Chain Reactions . | . . . Alert | -11 -10 -10 ------- Run | Yrd Mat Sub Peak Influence 152 | 10 152 . Initial 6 | . 6 . Average 61 | 2 72 . Maximum Alert Level . | . . . Low Security (%) 100 | 100 100 . Level 1 . | . . . Level 2 . | . . . Level 3 . | . . . Level 4 . | . . . Level 5 . | . . . High Security . | . . . Max Security . | . . . Squads Dispatched 1 | . 1 . Investigation 1 | . 1 . Extermination . | . . . Reinforcement . | . . . Assault . | . . . Garrison . | . . . Intercept . | . . . Searches Triggered . | . . . Construction Impeded . | . . . Haulers Reinforced . | . . . Active Scanning Responses . | . . . Cargo Convoy Interrupts . | . . . Stealth | -11 -10 -10 --------- Run | Yrd Mat Sub Distress Signals . | . . . Communications Jammed . | . . . Distress Signals . | . . . Times Spotted 18 | . 7 11 Peak Tracking Total 6 | . 4 6 Tactical Retreats 1 | . . 1 Traps | -11 -10 -10 ------- Run | Yrd Mat Sub Traps Triggered 3 | . 3 . Indirectly . | . . . Trap Hack Attempts . | . . . Triggered . | . . . Disarmed . | . . . Reprogrammed . | . . . Reused . | . . . Traps Extracted . | . . . Installed . | . . . Triggered . | . . . Machines | -11 -10 -10 ---------- Run | Yrd Mat Sub Machines Disabled . | . . . Max in Single Turn . | . . . Machines Repaired . | . . . Machines Dismantled . | . . . Machines Sabotaged . | . . . Overloaded Fab Kills . | . . . Hacking | -11 -10 -10 --------- Run | Yrd Mat Sub Machines Accessed 3 | . 3 . Terminals 2 | . 2 . Fabricators . | . . . Repair Stations . | . . . Recycling Units 1 | . 1 . Scanalyzers . | . . . Garrison Access . | . . . Total Hacks 8 | . 8 . Successful 5 | . 5 . Failed 3 | . 3 . Catastrophic . | . . . Database Lockouts . | . . . Manual 5 | . 5 . Terminals 6 | . 6 . Fabricators . | . . . Repair Stations . | . . . Recycling Units 2 | . 2 . Scanalyzers . | . . . Garrison Access . | . . . Terminal Hacks 2 | . 2 . Robot Analysis 2 | . 2 . Fabricator Hacks . | . . . Repair Station Hacks . | . . . Recycling Unit Hacks 1 | . 1 . Report Inventory 1 | . 1 . Scanalyzer . | . . . Garrison Access Hacks . | . . . Unauthorized Hacks 2 | . 2 . Terminals 1 | . 1 . Track 1 | . 1 . Fabricators . | . . . Repair Stations . | . . . Recycling Units 1 | . 1 . Tunnel 1 | . 1 . Scanalyzers . | . . . Garrison Access . | . . . Data Cores Recovered . | . . . Used . | . . . Hacking Detections 2 | . 2 . Full Trace Events . | . . . Feedback Events . | . . . Feedback Blocked . | . . . Robot Schematics Acquired . | . . . Robots Built . | . . . Authchips . | . . . Time . | . . . Total Robot Build Rating . | . . . Part Schematics Acquired . | . . . Parts Built . | . . . Authchips . | . . . Time . | . . . Total Part Build Rating . | . . . Parts Repaired . | . . . Time . | . . . Parts Recycled . | . . . Recycled Matter . | . . . Retrieved Matter . | . . . Retrieved Components . | . . . Parts Scanalyzed . | . . . Part Schematics Acquired . | . . . Parts Damaged . | . . . Bothacking | -11 -10 -10 ------------ Run | Yrd Mat Sub Used RIF Installer . | . . . Robots Hacked . | . . . Non-combat . | . . . Combat . | . . . Robot Hacks Applied . | . . . Relay Couplers Released . | . . . Fabnet Peak Effective % . | . . . Robots Rewired . | . . . Allies Hacked . | . . . Hacks Repelled . | . . . Allies | -11 -10 -10 -------- Run | Yrd Mat Sub Total Allies . | . . . Largest Group . | . . . Highest-Rated Group . | . . . Highest-Rated Ally . | . . . Total Orders . | . . . Ally Attacks . | . . . Total Damage . | . . . Kills . | . . . Allies Corrupted . | . . . Allies Melted . | . . . Intel | -11 -10 -10 ------- Run | Yrd Mat Sub Robot Analysis Total 2 | . 2 . Derelict Logs Recovered 2 | . . 2 Drone Launches . | . . . Drone Recoveries . | . . . Exploration | -11 -10 -10 ------------- Run | Yrd Mat Sub Turns Passed 2527 | 77 410 2040 Spaces Moved 1021 | 48 253 720 Core 12 | 6 2 4 Treads 1 | 1 . . Legs . | . . . Wheels 1008 | 41 251 716 Hover . | . . . Flight . | . . . Fastest Speed 50 | 50 95 95 Average Speed 97 | 90 96 98 Slowest Speed 250 | 160 250 250 Overloaded Moves . | . . . Propulsion Burnouts . | . . . Robots Hopped . | . . . Cave-ins Triggered . | . . . Exploration Rate (%) 26 | 5 42 32 Regions Visited 2 Branch Regions 1 Pre-discovered Areas 2 | . 1 1 Known Exits Taken . | . . . Unknown Exits Taken 2 | 1 1 . Scrap Searched 1 | . . 1 Spaces Dug . | . . . Terrain Destroyed . | . . . Melee . | . . . Projectile . | . . . AOE . | . . . Terrain Rammed . | . . . Walls Destroyed . | . . . Machines Disabled . | . . . Actions | -11 -10 -10 --------- Run | Yrd Mat Sub Total 2465 | 67 409 1989 Wait 1364 | . 140 1224 Move 1019 | 47 252 720 Hop . | . . . Pick Up 14 | 7 5 2 Fast Attach 13 | 7 3 3 Attach 2 | . 1 1 Detach . | . . . Swap 3 | 1 . 2 Drop 7 | . 3 4 Fire 43 | 5 5 33 Melee . | . . . Ram . | . . . Kick . | . . . Crush . | . . . Escape Stasis . | . . . Rewire . | . . . Trap . | . . . Miscellaneous . | . . . Route ------- -11/Scrapyard -10/Materials (discovered 2 exits: [*Mat] / [*Sub]) -10/Subcaves (discovered 2 exits: [*Mat] / [*Rec]) History --------- Turn | Location | Event 12 | -11/Scrapyard | Discovered new exit (range 15) 78 | -11/Scrapyard | Entered Materials 316 | -10/Materials | Build established: Mutant 316 | -10/Materials | Discovered new exit (range 4) 484 | -10/Materials | Discovered new exit (range 6) 488 | -10/Materials | Entered Subcaves 549 | -10/Subcaves | Learned location of Storage (-9) 575 | -10/Subcaves | Learned Materials emergency access door positions 611 | -10/Subcaves | A swath of the cavern ceiling suddenly collapsed 2006 | -10/Subcaves | Discovered new exit (range 14) 2320 | -10/Subcaves | Lost 4 parts (1p2n1u) 2371 | -10/Subcaves | Core integrity fell below 50% 2403 | -10/Subcaves | Core integrity fell below 20% 2418 | -10/Subcaves | Shifting Twisted Machinery released Flamer 2520 | -10/Subcaves | Discovered new exit (range 15) 2528 | -10/Subcaves | Destroyed by S-10 Pest with Light Assault Rifle Last Messages --------------- 02308_ Acquired Sub. Power Source. 02312_ Acquired Sub. Monowheel. 02361_ 48-BU3(R): "MADSUB!" 02376_ Barrage Gun destroyed. 02388_ 48-BU3(R) affixes Scrap Shield Fragment to Scrap Shield. 02404_ 48-BU3(R) destroyed. 02407_ Acquired 30 matter. 02409_ Subatomizers dissect the Wheel. 02412_ Acquired Sub. Optics. Flamer falls loose from the Twisted Machinery. 02431_ Acquired 14 matter. 02432_ Subatomizers dissect the Wheel. 02433_ Acquired 43 matter. 02452_ BJ-PIM(u) deconstructs Twisted Machinery. 02506_ System corrupted: Substantial component data lost. 02520_ EXIT=FOUND 02527_ S-10 Pest destroyed. Map ----- +----------------------------------------------------+ | ?????????????????????????????????????????????????? | | ?????????????????????????????????????????????????? | | ?????????????????????????????????????????????????? | | ?????????????????????????????????????????????????? | | ?????????????????????????????????????????????????? | | ?????????????????????????????????????????????????? | | ?????????????????????????????????????????????????? | | ?????????????????????????#???????????????????????? | | ????????????????????????? ???????????????????????? | | ????????????????????????? ???????????????????????? | | ????????????????????""""" ???????????????????????? | | ????????????????????""""" ???????????????????????? | | ?????????????????????"""" ???????????????????????? | | ?????????????????????"""" ???????????????????????? | | ????????????????????? #???????????????????????? | | ?????????????????????# #???????????????????????? | | ????????????????????## ####????????????????????? | | ????????????????????# ####?????????????????? | | ???????????????????## ##????????????????? | | ???????????????????# #??????#?????###?# | | ???????????????????? #??? "#?????# ### | | ????????????????????? # "#?????# ## | | ??????????????????????# s ""#?????# | | ????????????????????### s <#????# | | ????????????????????# s%## ""#?????# | | ????????????????????# @##?????? "#?????# # | | ??????????????####### ##????????????????# # | | ??????????????# ###??????????????# # | | ??????????????# ######???####### ## | | ??????????????# ##### ## #? | | ??????????????# #? | | ??????????# ### #? | | ??????????## #??## ## ####? | | ???????????# ????## ### ## ##???? | | ??????????# ??????## ?# #### #????? | | ??????????#### ????????# ##??#### ##????? | | ?????????????#?????????# #??????###?????? | | ??????????????????????# #??????????????? | | ??????????????????????# #??????????????? | | ?????????????????????# #??????????????? | | ?????????????????????###### ##??????????????? | | ??????????????????????????## ##???????????????? | | ???????????????????????????# #????????????????? | | ??????????????????????????? ##????????????????? | | ??????????????????????????## ##?????????????????? | | ??????????????????????????? ??????????????????? | | ??????????????????????????# ??????????????????? | | ?????????????????????????? ??????????????????? | | ?????????????????????????? ## ??????????????????? | | ??????????????????????????? ??#??????????????????? | +----------------------------------------------------+ Best States ------------- Heat Dissipation 25 Energy Generation 15 Energy Capacity 250 Matter Stores 300 Matter Capacity 300 Sight Range 21 Terrain Scan Density 10 Evasion (%) 44 Recoil Reduction 1 Item Schematics ----------------- None Robot Schematics ------------------ None Fabricated ------------ Nothing Alien Tech Used ----------------- None Achievements -------------- None Challenges ------------ None Game ------ Seed MicroFlyingReconfigurator Manual? 0 Play Time 00:13:33 Cumulative 673.9 hours Start 2024.03.29 @ 09:06:07 End 2024.03.29 @ 09:18:46 Sessions 2 Manual Loads 0 Difficulty Rogue Special Mode None Game No. 272 Rogue 244 Adventurer 3 Explorer 25 Win Type - Total 15 Types 10/2/1/1/0/1/0/0/0 Lore% 91 Gallery% 96 Achievement% 85 Wizard Run 0 Options --------- Layout 2 ASCII 0 Keyboard 0 Movement Numpad Keybinds 0 Fullscreen 2 Font 24/Smallcaps Map View 50x44 Zoom Use 0% Tactical HUD 1 Map Filters NONE Filters NONE Steam 1 RUN: 4ac12208-2552-4b06-8c89-1fe6cd20893d